bitfinex-derivatives/quotes_BTCF0:USTF0_20241213
["timestamp","ask_amount","ask_price","bid_price","bid_amount"]
[1734106616233,0.410598,100390.0,100380.0,0.049801]
[1734106616433,0.410598,100390.0,100370.0,0.75968759]
[1734106616434,0.049803,100380.0,100370.0,0.410606]
[1734106616642,0.049803,100380.0,100370.0,0.58908853]
[1734106618540,0.3608,100390.0,100380.0,0.049803]
[1734106618541,0.4106,100390.0,100380.0,0.049803]
[1734106619737,0.511095,100400.0,100380.0,0.63100806]
[1734106619738,0.4613,100400.0,100380.0,0.63100806]
[1734106619939,0.511095,100400.0,100390.0,0.27020306]
[1734106620148,0.511095,100400.0,100390.0,0.204198]
[1734106620448,0.510595,100400.0,100390.0,0.360998]
[1734106621236,0.510595,100400.0,100390.0,0.361998]
[1734106621448,0.511095,100400.0,100390.0,0.361998]
[1734106622355,0.149795,100400.0,100390.0,0.361998]
[1734106622655,0.510595,100400.0,100390.0,0.001]
[1734106623144,0.510595,100400.0,100390.0,0.050798]
[1734106624046,0.149795,100400.0,100390.0,0.050798]
[1734106624543,0.23748131,100400.0,100390.0,0.050798]
[1734106624847,0.59828131,100400.0,100390.0,0.050798]
[1734106625041,0.23748131,100400.0,100390.0,0.050798]
[1734106625353,0.59828131,100400.0,100390.0,0.050798]
[1734106625557,0.23748131,100400.0,100390.0,0.050798]
[1734106626345,0.59828131,100400.0,100390.0,0.050798]
[1734106626546,0.59828131,100400.0,100390.0,0.001]
[1734106627155,0.59828131,100400.0,100390.0,0.050798]
[1734106628057,0.510595,100400.0,100390.0,0.001]
[1734106628242,0.510595,100400.0,100390.0,0.050798]
[1734106628448,0.59838322,100400.0,100390.0,0.050798]
[1734106628855,0.510595,100400.0,100390.0,0.050798]
[1734106629157,0.18779302,100400.0,100390.0,0.55451552]
[1734106629449,0.18779302,100400.0,100390.0,0.73299805]
[1734106629641,0.23758602,100400.0,100390.0,1.97299805]
[1734106630052,0.23758602,100400.0,100390.0,0.73299805]
[1734106630256,0.23758602,100400.0,100390.0,0.55451552]
[1734106630475,0.23758602,100400.0,100390.0,0.73299805]
[1734106630647,0.23758602,100400.0,100390.0,0.55451552]
[1734106631352,0.18779302,100400.0,100390.0,0.55451552]
[1734106631851,0.23758602,100400.0,100390.0,0.55451552]
[1734106632151,0.23758602,100400.0,100390.0,0.73299805]
[1734106633051,0.18779302,100400.0,100390.0,0.73299805]
[1734106633351,0.18779302,100400.0,100390.0,0.59008053]
[1734106633651,0.23758602,100400.0,100390.0,0.050798]
[1734106636056,0.59838602,100400.0,100390.0,0.050798]
[1734106636756,0.510593,100400.0,100390.0,0.050798]
[1734106637150,0.149793,100400.0,100390.0,0.050798]
[1734106637349,0.1878228,100400.0,100390.0,0.55451552]
[1734106637549,0.2376158,100400.0,100390.0,0.59008053]
[1734106637750,0.2376158,100400.0,100390.0,0.05903278]
[1734106638157,0.149793,100400.0,100390.0,0.05903278]
[1734106638556,0.149793,100400.0,100390.0,0.23751531]
[1734106639162,0.149793,100400.0,100390.0,0.05903278]
[1734106639552,0.149793,100400.0,100390.0,0.23751531]
[1734106640964,0.29615295,100400.0,100390.0,1.47751531]
[1734106641153,0.149793,100400.0,100390.0,1.62043283]
[1734106641558,0.29615295,100400.0,100390.0,1.62043283]
[1734106642365,0.29615295,100400.0,100390.0,1.98123283]
[1734106642658,0.149793,100400.0,100390.0,1.98123283]
[1734106643268,0.149793,100400.0,100390.0,2.07629202]
[1734106644458,0.149793,100400.0,100390.0,2.04072701]
[1734106644666,0.1,100400.0,100390.0,1.98179354]
[1734106644864,0.18792631,100400.0,100390.0,2.39354418]
[1734106645158,0.1,100400.0,100390.0,2.59811005]
[1734106645662,0.1,100400.0,100390.0,2.59723002]
[1734106645961,0.13771531,100410.0,100400.0,0.19271052]
[1734106646159,0.13771531,100410.0,100400.0,0.5895769]
[1734106647159,0.049793,100400.0,100390.0,0.42993592]
[1734106647362,0.65223605,100400.0,100390.0,0.001]
[1734106647564,1.12455108,100400.0,100390.0,0.001]
[1734106647861,0.88290803,100400.0,100390.0,0.001]
[1734106648066,0.049803,100380.0,100370.0,1.23471024]
[1734106648267,0.13767973,100380.0,100370.0,1.23471024]
[1734106648561,0.49847973,100380.0,100370.0,0.18741024]
[1734106648755,0.49847973,100380.0,100370.0,0.0084343]
[1734106648756,0.55706422,100380.0,100370.0,0.0084343]
[1734106649059,0.049808,100370.0,100360.0,0.92500871]
[1734106649253,0.13764928,100370.0,100360.0,0.92500871]
[1734106649455,0.13764928,100370.0,100360.0,0.92550871]
[1734106649955,0.13764928,100370.0,100360.0,0.83022561]
[1734106650150,0.59373238,100370.0,100360.0,0.18097041]
[1734106650352,1.10335232,100370.0,100340.0,0.41762114]
[1734106650666,0.49841899,100350.0,100340.0,0.17897594]
[1734106650861,0.49841899,100350.0,100330.0,0.92502416]
[1734106651061,0.13762399,100340.0,100330.0,0.87519916]
[1734106651367,0.410623,100340.0,100330.0,0.00149492]
[1734106651660,0.410623,100340.0,100330.0,0.00990418]
[1734106651863,0.49842399,100340.0,100330.0,0.00990418]
[1734106652065,0.49842399,100340.0,100330.0,0.01090418]
[1734106652362,0.5059061,100340.0,100330.0,0.00249492]
[1734106652563,0.410623,100340.0,100330.0,0.00249492]
[1734106652865,0.410623,100340.0,100330.0,0.00149492]
[1734106652866,0.5059061,100340.0,100330.0,0.00149492]
[1734106653159,0.410623,100340.0,100330.0,0.00149492]
[1734106653356,0.412623,100340.0,100330.0,0.00149492]
[1734106654465,0.412623,100340.0,100330.0,0.00199492]
[1734106655058,0.55571231,100340.0,100330.0,0.00199492]
[1734106655567,0.85571231,100340.0,100330.0,0.0005]
[1734106655765,1.0997133,100340.0,100330.0,0.0005]
[1734106656266,0.049833,100320.0,100300.0,0.80953918]
[1734106656569,0.19292731,100310.0,100300.0,0.10009918]
[1734106656757,0.049838,100310.0,100300.0,0.10009918]
[1734106657367,0.19292731,100310.0,100300.0,0.10009918]
[1734106657568,0.19292731,100310.0,100300.0,0.10909918]
[1734106657757,0.049848,100290.0,100280.0,1.24]
[1734106657961,0.049848,100290.0,100260.0,0.65080175]
[1734106657962,0.55373731,100290.0,100260.0,0.41215655]
[1734106658157,0.049857,100270.0,100260.0,0.41215655]
[1734106658364,0.049857,100270.0,100260.0,0.36229555]
[1734106658769,0.04994251,100270.0,100260.0,0.36229555]
[1734106658964,0.04994251,100270.0,100260.0,0.00149555]
[1734106659163,0.04994251,100270.0,100260.0,0.36329555]
[1734106659667,8.551e-05,100270.0,100260.0,0.56524686]
[1734106660255,8.551e-05,100270.0,100260.0,0.72654686]
[1734106660767,8.551e-05,100270.0,100260.0,0.36974686]
[1734106660966,0.00814705,100310.0,100270.0,0.049857]
[1734106661170,0.410634,100320.0,100310.0,0.049838]
[1734106661772,0.049834,100320.0,100310.0,0.410638]
[1734106661962,0.37066326,100340.0,100310.0,0.410638]
[1734106662162,0.04983,100330.0,100310.0,0.410638]
[1734106662462,0.009,100320.0,100310.0,0.411638]
[1734106663263,0.058833,100320.0,100310.0,0.411638]
[1734106663569,0.049833,100320.0,100310.0,0.410638]
[1734106664365,0.054833,100320.0,100310.0,0.410638]
[1734106665068,0.049833,100320.0,100310.0,0.3618]
[1734106665369,0.410633,100320.0,100310.0,0.0025]
[1734106666067,0.557133,100320.0,100310.0,0.0025]
[1734106666567,0.557133,100320.0,100310.0,0.002]
[1734106667168,0.196333,100320.0,100310.0,0.002]
[1734106667472,0.196333,100320.0,100310.0,0.052338]
[1734106668072,0.196333,100320.0,100310.0,0.0025]
[1734106668374,0.196333,100320.0,100310.0,0.002]
[1734106668873,0.196333,100320.0,100310.0,0.051838]
[1734106669266,0.049833,100320.0,100310.0,0.19492731]
[1734106669476,0.7224906,100340.0,100310.0,0.55572731]
[1734106669477,0.3691676,100340.0,100310.0,0.55572731]
[1734106669665,0.4189936,100340.0,100330.0,0.049828]
[1734106670568,0.4219936,100340.0,100330.0,0.049828]
[1734106670765,0.049828,100330.0,100310.0,0.3134]
[1734106670967,0.410633,100320.0,100310.0,0.001]
[1734106671360,0.572433,100320.0,100310.0,0.001]
[1734106671768,0.572433,100320.0,100300.0,0.3613]
[1734106671969,0.049838,100310.0,100300.0,0.411143]
[1734106672367,0.049838,100310.0,100300.0,0.410643]
[1734106673681,0.572433,100320.0,100310.0,0.049838]
[1734106673682,0.410633,100320.0,100310.0,0.049838]
[1734106673865,0.4265936,100340.0,100310.0,0.55372331]
[1734106673866,0.5096,100340.0,100310.0,0.55372331]
[1734106674177,0.5096,100340.0,100310.0,0.70952231]
[1734106674178,0.559423,100340.0,100310.0,0.70952231]
[1734106674483,0.049829,100330.0,100320.0,0.04983]
[1734106674772,0.049829,100330.0,100320.0,0.41063]
[1734106674973,0.5096,100340.0,100320.0,0.55371931]
[1734106675282,0.049824,100340.0,100330.0,0.55371731]
[1734106675492,0.056824,100340.0,100330.0,0.410628]
[1734106675982,0.049824,100340.0,100330.0,0.410628]
[1734106676571,0.049824,100340.0,100330.0,0.411628]
[1734106677375,0.049824,100340.0,100330.0,0.002]
[1734106677677,0.049824,100340.0,100330.0,0.051828]
[1734106677982,0.049824,100340.0,100330.0,0.3628]
[1734106678566,0.049824,100340.0,100330.0,0.412628]
[1734106678775,0.049824,100340.0,100330.0,0.3628]
[1734106679078,0.049824,100340.0,100330.0,0.412628]
[1734106683869,0.3608,100350.0,100330.0,0.85571731]
[1734106684088,0.00052001,100360.0,100350.0,0.049818]
[1734106684380,0.049799,100390.0,100380.0,0.049801]
[1734106684582,0.049799,100390.0,100380.0,0.50388931]
[1734106684780,0.049799,100390.0,100380.0,0.55369231]
[1734106685175,0.049799,100390.0,100380.0,0.410603]
[1734106685369,0.049799,100390.0,100380.0,0.3608]
[1734106685774,0.12143366,100400.0,100380.0,0.55369231]
[1734106685974,0.17122966,100400.0,100390.0,0.55368731]
[1734106686884,0.17122966,100400.0,100390.0,0.410598]
[1734106687085,0.049798,100390.0,100380.0,0.411602]
[1734106687976,0.049798,100390.0,100380.0,0.410602]
[1734106689283,0.053798,100390.0,100380.0,0.410602]
[1734106689486,0.060798,100390.0,100380.0,0.411602]
[1734106689685,0.060798,100390.0,100380.0,0.3618]
[1734106689988,0.216398,100390.0,100380.0,0.001]
[1734106690499,0.060798,100390.0,100380.0,0.55469231]
[1734106692280,0.060798,100390.0,100380.0,0.411603]
[1734106694086,0.060798,100390.0,100380.0,0.001]
[1734106694390,0.060798,100390.0,100380.0,0.55469231]
[1734106694990,0.060798,100390.0,100380.0,0.411603]
[1734106695390,0.060798,100390.0,100380.0,0.3618]
[1734106695889,0.060798,100390.0,100380.0,0.411603]
[1734106696579,0.061298,100390.0,100380.0,0.411603]
[1734106697485,0.060798,100390.0,100380.0,0.3618]
[1734106698593,0.061298,100390.0,100380.0,0.3618]
[1734106699690,0.060798,100390.0,100380.0,0.3618]
[1734106700584,0.06986003,100390.0,100380.0,0.001]
[1734106700798,0.43066003,100390.0,100380.0,0.001]
[1734106701289,0.43066003,100390.0,100380.0,0.301]
[1734106701601,0.57324934,100390.0,100380.0,0.301]
[1734106701893,0.72314934,100390.0,100380.0,0.301]
[1734106702082,1.02314934,100390.0,100380.0,0.301]
[1734106702282,0.049808,100370.0,100360.0,0.36229453]
[1734106702500,0.410608,100370.0,100360.0,0.00149453]
[1734106702798,0.049813,100360.0,100350.0,0.5224]
[1734106702988,0.049813,100360.0,100350.0,0.3608]
[1734106704186,0.049813,100360.0,100330.0,1.02000417]
[1734106704187,0.60352031,100360.0,100330.0,1.28754186]
[1734106704386,0.049823,100340.0,100330.0,0.89029666]
[1734106704588,0.049823,100340.0,100330.0,0.88979666]
[1734106704789,0.049823,100340.0,100330.0,1.03288597]
[1734106705087,0.049821,100350.0,100340.0,0.049819]
[1734106705283,0.049821,100350.0,100340.0,0.410619]
[1734106705890,0.049821,100350.0,100340.0,0.3608]
[1734106706591,0.049821,100350.0,100340.0,0.3618]
[1734106706789,0.049821,100350.0,100340.0,0.411623]
[1734106707489,0.049821,100350.0,100340.0,0.050823]
[1734106707788,0.049821,100350.0,100340.0,0.051823]
[1734106707988,0.049821,100350.0,100340.0,0.002]
[1734106709784,0.049821,100350.0,100340.0,0.051823]
[1734106709990,0.049821,100350.0,100340.0,0.55571231]
[1734106710490,0.049814,100360.0,100350.0,0.049818]
[1734106710686,0.049814,100360.0,100350.0,0.55370731]
[1734106711286,0.049814,100360.0,100350.0,0.410618]
[1734106711693,0.050814,100360.0,100350.0,0.410618]
[1734106711901,0.053814,100360.0,100350.0,0.410618]
[1734106713496,0.053814,100360.0,100350.0,0.3608]
[1734106713799,0.052814,100360.0,100350.0,0.410618]
[1734106713995,0.050814,100360.0,100350.0,0.411618]
[1734106714196,0.14646122,100380.0,100350.0,1.17626628]
[1734106714404,0.049804,100380.0,100370.0,0.55369731]
[1734106714792,0.049804,100380.0,100370.0,0.410608]
[1734106714991,0.049801,100390.0,100380.0,0.049801]
[1734106715188,0.29775139,100400.0,100390.0,0.049798]
[1734106715405,0.29775139,100400.0,100390.0,0.410598]
[1734106715600,0.15129017,100400.0,100390.0,0.410598]
[1734106716196,0.15129017,100400.0,100390.0,0.049798]
[1734106716790,0.15129017,100400.0,100380.0,0.410603]
[1734106716791,0.049803,100390.0,100380.0,0.410603]
[1734106717701,0.52109717,100400.0,100390.0,0.049803]
[1734106718001,0.51209717,100400.0,100390.0,0.049803]
[1734106718602,0.049803,100390.0,100380.0,0.411606]
[1734106718998,0.049803,100390.0,100380.0,0.410606]
[1734106719294,0.049813,100370.0,100360.0,1.08560941]
[1734106719495,0.049813,100370.0,100360.0,0.00149455]
[1734106719697,0.410613,100370.0,100360.0,0.00149455]
[1734106719898,0.73238925,100370.0,100360.0,0.00149455]
[1734106720404,0.89425625,100370.0,100360.0,0.00149455]
[1734106720794,0.88208925,100370.0,100360.0,0.00149455]
[1734106720997,0.89425625,100370.0,100360.0,0.00149455]
[1734106721400,0.049818,100360.0,100350.0,0.04982]
[1734106723206,0.049823,100350.0,100340.0,0.70781531]
[1734106723401,0.049823,100350.0,100340.0,0.564726]
[1734106724505,0.049823,100350.0,100340.0,0.569726]
[1734106724909,0.049823,100350.0,100340.0,0.572726]
[1734106725705,0.049823,100350.0,100340.0,0.1621]
[1734106725904,0.049828,100340.0,100330.0,0.0005]
[1734106726214,0.049838,100320.0,100300.0,0.57791486]
[1734106726413,0.049838,100320.0,100300.0,0.17845505]
[1734106726414,0.049843,100310.0,100300.0,0.17845505]
[1734106726609,0.049843,100310.0,100290.0,0.709252]
[1734106726610,0.14308931,100310.0,100290.0,0.709252]
[1734106726805,0.049847,100300.0,100290.0,0.563352]
[1734106728103,0.049847,100300.0,100290.0,0.207552]
[1734106729607,0.050847,100300.0,100290.0,0.217052]
[1734106730098,0.55473631,100300.0,100290.0,0.1672]
[1734106730301,0.55473631,100300.0,100290.0,0.0145]
[1734106735314,0.55473631,100300.0,100290.0,1.2545]
[1734106736015,0.55473631,100300.0,100290.0,0.0145]
[1734106738205,0.411647,100300.0,100290.0,0.064352]
[1734106738411,0.411647,100300.0,100290.0,0.0145]
[1734106738807,0.55473631,100300.0,100290.0,0.0145]
[1734106739115,0.19393631,100300.0,100290.0,0.0145]
[1734106740120,0.14393631,100300.0,100290.0,0.0145]
[1734106740414,0.19378331,100300.0,100290.0,0.0145]
[1734106740712,0.000847,100300.0,100290.0,0.425152]
[1734106740904,0.05133077,100330.0,100320.0,0.049838]
[1734106741108,0.00149577,100330.0,100320.0,0.410638]
[1734106741303,0.00149577,100330.0,100320.0,0.55372731]
[1734106742101,0.05232877,100330.0,100320.0,0.55372731]
[1734106743108,0.05532877,100330.0,100320.0,0.55372731]
[1734106743513,0.053833,100330.0,100320.0,0.410638]
[1734106745124,0.053833,100330.0,100320.0,0.049838]
[1734106745518,0.004,100330.0,100320.0,0.55372731]
[1734106745816,0.053833,100330.0,100320.0,0.410638]
[1734106746411,0.049838,100320.0,100310.0,0.3608]
[1734106746719,0.049843,100310.0,100300.0,0.4879]
[1734106746922,0.049843,100310.0,100300.0,0.1271]
[1734106747518,0.049847,100300.0,100290.0,0.54257926]
[1734106747926,0.049847,100300.0,100290.0,0.53554563]
[1734106748115,0.410647,100300.0,100290.0,0.17474563]
[1734106748311,0.410647,100300.0,100290.0,0.00149563]
[1734106748922,0.410647,100300.0,100290.0,0.00549563]
[1734106750015,0.411647,100300.0,100290.0,0.01449563]
[1734106751718,0.050847,100300.0,100290.0,0.062852]
[1734106751915,0.050847,100300.0,100290.0,0.56674131]
[1734106752617,0.050847,100300.0,100290.0,0.423652]
[1734106753122,0.050847,100300.0,100290.0,0.062852]
[1734106753621,0.050847,100300.0,100290.0,0.423652]
[1734106753830,0.050847,100300.0,100290.0,0.56674131]
[1734106754031,0.050847,100300.0,100290.0,1.796052]
[1734106757830,0.050847,100300.0,100290.0,1.93914131]
[1734106758320,0.050847,100300.0,100290.0,0.556052]
[1734106759733,0.001,100300.0,100290.0,0.69914131]
[1734106759933,0.049839,100320.0,100300.0,0.049846]
[1734106760233,0.049839,100320.0,100310.0,0.410643]
[1734106760828,0.42426394,100330.0,100320.0,0.049838]
[1734106761034,0.41213091,100330.0,100320.0,0.049838]
[1734106761233,0.049838,100320.0,100310.0,0.537641]
[1734106761424,0.049838,100320.0,100310.0,0.410641]
[1734106761630,0.049838,100320.0,100310.0,0.411641]
[1734106762231,0.049838,100320.0,100310.0,0.3618]
[1734106762439,0.55372731,100320.0,100310.0,0.001]
[1734106762739,0.674138,100320.0,100310.0,0.001]
[1734106762939,0.806938,100320.0,100310.0,0.001]
[1734106763137,0.049843,100310.0,100300.0,0.049847]
[1734106763634,0.049852,100290.0,100280.0,0.23518895]
[1734106763834,0.049857,100280.0,100270.0,2.24141151]
[1734106764033,0.049857,100280.0,100270.0,0.54068489]
[1734106764334,0.049857,100280.0,100270.0,0.58431261]
[1734106765042,0.049857,100280.0,100270.0,0.54068489]
[1734106765548,0.049857,100280.0,100270.0,0.54018489]
[1734106765928,0.049857,100280.0,100270.0,0.36092389]
[1734106766341,0.410657,100280.0,100270.0,0.00012389]
[1734106766541,0.410657,100280.0,100270.0,0.00912389]
[1734106766542,0.411657,100280.0,100270.0,0.00912389]
[1734106767037,0.410657,100280.0,100270.0,0.00912389]
[1734106767340,0.410657,100280.0,100270.0,0.01412389]
[1734106768239,0.410657,100280.0,100270.0,0.00512389]
[1734106768441,0.410657,100280.0,100270.0,0.00712389]
[1734106769730,0.55374631,100280.0,100270.0,0.00712389]
[1734106772334,0.410657,100280.0,100270.0,0.00712389]
[1734106778545,0.55374631,100280.0,100270.0,0.00712389]
[1734106779337,0.50618943,100280.0,100270.0,0.00712389]
[1734106781943,0.50618943,100280.0,100270.0,0.05698589]
[1734106782246,0.410657,100280.0,100270.0,0.05698589]
[1734106782543,0.410657,100280.0,100270.0,0.15251832]
[1734106783043,0.410657,100280.0,100270.0,0.05698589]
[1734106783848,0.50618943,100280.0,100270.0,0.00712389]
[1734106784241,0.50618943,100280.0,100270.0,0.05698589]
[1734106784443,0.410657,100280.0,100270.0,0.05698589]
[1734106785749,0.50618943,100280.0,100270.0,0.00712389]
[1734106787047,0.049872,100250.0,100240.0,0.00199631]
[1734106787351,0.50620443,100250.0,100240.0,0.04414927]
[1734106787543,0.50620443,100250.0,100240.0,0.0005]
[1734106787742,0.50620443,100250.0,100220.0,0.67304078]
[1734106787943,0.049882,100230.0,100220.0,0.48495962]
[1734106788147,0.049882,100230.0,100220.0,0.52861815]
[1734106788350,0.14541443,100230.0,100220.0,0.35014353]
[1734106788555,0.049882,100230.0,100220.0,0.35014353]
[1734106788848,0.049882,100230.0,100220.0,0.71094353]
[1734106789241,0.049882,100230.0,100220.0,0.89642741]
[1734106789448,0.049882,100230.0,100220.0,0.85276888]
[1734106789653,0.049882,100230.0,100220.0,0.72235962]
[1734106789837,0.050882,100230.0,100220.0,0.73135962]
[1734106790248,0.050882,100230.0,100220.0,0.552885]
[1734106790449,0.051882,100230.0,100220.0,0.557885]
[1734106792747,0.052882,100230.0,100220.0,0.548885]
[1734106793354,0.052882,100230.0,100220.0,0.188085]
[1734106793550,0.06145516,100230.0,100220.0,0.183085]
[1734106794556,0.410679,100240.0,100230.0,0.049882]
[1734106795144,0.410679,100240.0,100230.0,1.289882]
[1734106795654,0.410679,100240.0,100230.0,0.049882]
[1734106795850,0.411679,100240.0,100230.0,0.049882]
[1734106796049,0.049882,100230.0,100220.0,0.050386]
[1734106796241,0.049882,100230.0,100220.0,0.411186]
[1734106797957,0.0582585,100240.0,100230.0,0.049882]
[1734106798153,0.42280234,100250.0,100220.0,0.55458905]
[1734106798348,0.05737387,100250.0,100240.0,0.049877]
[1734106799854,0.049882,100240.0,100230.0,0.049882]
[1734106801060,0.410682,100240.0,100230.0,0.049882]
[1734106802552,0.049882,100230.0,100220.0,0.53927462]
[1734106802757,0.049882,100230.0,100220.0,0.45434991]
[1734106802953,0.049882,100230.0,100220.0,0.410687]
[1734106803563,0.049882,100230.0,100220.0,0.049887]
[1734106803755,0.049882,100230.0,100220.0,0.410687]
[1734106804658,0.053882,100230.0,100220.0,0.410687]
[1734106804858,0.054882,100230.0,100220.0,0.410687]
[1734106805362,0.054882,100230.0,100220.0,0.049887]
[1734106805562,0.049887,100220.0,100210.0,0.84826752]
[1734106805759,0.55408905,100220.0,100210.0,0.0441642]
[1734106805965,0.55408905,100220.0,100210.0,0.0005]
[1734106806763,0.049892,100210.0,100200.0,0.28009908]
[1734106807068,0.049892,100210.0,100200.0,0.32376498]
[1734106807459,0.049892,100210.0,100200.0,0.28009908]
[1734106807765,0.049892,100210.0,100200.0,0.10212446]
[1734106808459,0.049892,100210.0,100200.0,0.10262758]
[1734106808665,0.049892,100210.0,100200.0,0.10212758]
[1734106808962,0.049892,100210.0,100200.0,0.15202458]
[1734106809163,0.049889,100220.0,100210.0,0.049892]
[1734106809364,0.58116438,100230.0,100210.0,0.5062883]
[1734106809571,0.61449863,100240.0,100230.0,0.049882]
[1734106809764,0.14467764,100240.0,100230.0,1.289882]
[1734106810066,0.50547764,100240.0,100230.0,1.289882]
[1734106810666,0.049882,100230.0,100220.0,0.310185]
[1734106810863,0.049887,100220.0,100210.0,0.410692]
[1734106811062,0.049887,100220.0,100210.0,1.69435611]
[1734106811264,0.049887,100220.0,100210.0,0.410692]
[1734106811859,0.049887,100220.0,100210.0,0.3608]
[1734106812172,0.049887,100220.0,100210.0,0.410692]
[1734106812562,0.049887,100220.0,100200.0,0.64551853]
[1734106812563,0.5062833,100220.0,100200.0,0.64551853]
[1734106812759,0.049892,100210.0,100200.0,0.81776558]
[1734106813065,0.049892,100210.0,100200.0,0.86766258]
[1734106813364,0.049892,100210.0,100200.0,0.14529096]
[1734106813764,0.1454883,100210.0,100200.0,0.14529096]
[1734106813965,0.5062883,100210.0,100200.0,0.14366643]
[1734106814165,0.5062883,100210.0,100200.0,0.14366898]
[1734106814467,0.5062883,100210.0,100200.0,0.104]
[1734106814664,0.5062883,100210.0,100200.0,0.106]
[1734106815058,0.5062883,100210.0,100200.0,0.14967063]
[1734106815264,0.5062883,100210.0,100200.0,0.106]
[1734106815660,0.89365268,100210.0,100200.0,0.106]
[1734106815862,0.98924898,100210.0,100200.0,0.106]
[1734106816071,0.98924898,100210.0,100190.0,0.0005]
[1734106816072,1.00137714,100210.0,100190.0,0.0005]
[1734106816367,0.6018896,100200.0,100190.0,0.04417246]
[1734106816665,0.6018896,100200.0,100190.0,0.04367246]
[1734106817268,0.5062933,100200.0,100190.0,0.04567246]
[1734106817570,0.5072933,100200.0,100190.0,0.05367246]
[1734106817754,0.411697,100200.0,100190.0,0.01]
[1734106817955,0.411697,100200.0,100190.0,0.05567246]
[1734106818166,0.5072933,100200.0,100190.0,0.05567246]
[1734106819164,0.6028896,100200.0,100190.0,0.05567246]
[1734106819375,0.9028896,100200.0,100190.0,0.05567246]
[1734106819667,0.9028896,100200.0,100190.0,0.012]
[1734106820063,0.99025398,100200.0,100190.0,0.012]
[1734106820267,1.10670723,100200.0,100190.0,0.012]
[1734106820769,1.10570723,100200.0,100190.0,0.006]
[1734106820962,1.10570723,100200.0,100190.0,0.002]
[1734106821162,1.11318378,100200.0,100190.0,0.004]
[1734106822365,0.99673053,100200.0,100190.0,0.004]
[1734106822767,1.11318378,100200.0,100160.0,0.6162]
[1734106822965,0.049912,100170.0,100160.0,0.65987504]
[1734106823674,0.049912,100170.0,100160.0,0.70979204]
[1734106823874,0.049912,100170.0,100160.0,0.71379204]
[1734106824063,0.049912,100170.0,100160.0,0.72179204]
[1734106824372,0.410712,100170.0,100160.0,0.36099204]
[1734106824769,0.411712,100170.0,100160.0,0.36099204]
[1734106825066,0.411712,100170.0,100160.0,0.36098775]
[1734106825274,0.411712,100170.0,100160.0,0.317317]
[1734106826065,0.412712,100170.0,100160.0,0.318317]
[1734106827471,0.412712,100170.0,100160.0,0.36198775]
[1734106827671,0.002,100170.0,100160.0,0.81838405]
[1734106827875,0.051912,100170.0,100160.0,0.81838405]
[1734106828272,0.051912,100170.0,100160.0,0.72278775]
[1734106828677,0.051912,100170.0,100160.0,1.96328775]
[1734106828974,0.051912,100170.0,100160.0,1.55257075]
[1734106829273,0.1475083,100170.0,100160.0,0.31257075]
[1734106829464,0.412712,100170.0,100160.0,0.31257075]
[1734106829668,0.412712,100170.0,100160.0,0.31207075]
[1734106830377,0.412712,100170.0,100160.0,0.31107075]
[1734106830776,0.412712,100170.0,100160.0,0.31157075]
[1734106831973,0.412712,100170.0,100160.0,0.31107075]
[1734106832179,0.412712,100170.0,100160.0,0.36098775]
[1734106833174,0.412712,100170.0,100160.0,0.31107075]
[1734106834977,0.5083083,100170.0,100160.0,0.05567075]
[1734106835284,0.9039046,100170.0,100140.0,0.27119786]
[1734106835479,0.049922,100150.0,100140.0,0.27119786]
[1734106835776,0.410722,100150.0,100140.0,0.27119786]
[1734106835979,0.5063183,100150.0,100140.0,0.1348]
[1734106836277,0.049927,100140.0,100130.0,8.327e-05]
[1734106836576,0.049932,100130.0,100120.0,0.31067462]
[1734106836773,0.049932,100130.0,100110.0,0.54514078]
[1734106836774,0.049937,100120.0,100110.0,0.54514078]
[1734106836971,0.35457066,100120.0,100110.0,0.30717462]
[1734106837274,0.40450766,100120.0,100110.0,0.30717462]
[1734106837474,0.40450766,100120.0,100110.0,0.1287]
[1734106837679,0.049937,100120.0,100110.0,0.9806926]
[1734106837884,0.049937,100120.0,100110.0,1.21865876]
[1734106838078,0.049937,100120.0,100110.0,1.39713338]
[1734106838273,0.049937,100120.0,100110.0,1.00153708]
[1734106838473,0.049937,100120.0,100110.0,0.76357092]
[1734106838673,0.049937,100120.0,100110.0,0.5850963]
[1734106838883,0.049937,100120.0,100110.0,0.4895]
[1734106839067,0.050937,100120.0,100110.0,0.4945]
[1734106839475,0.051937,100120.0,100110.0,0.4945]
[1734106839674,0.050937,100120.0,100110.0,0.4895]
[1734106839876,0.051937,100120.0,100110.0,0.4945]
[1734106840075,0.412737,100120.0,100110.0,0.1337]
[1734106842484,0.002,100120.0,100110.0,0.1337]
[1734106843481,0.3628,100120.0,100110.0,0.1337]
[1734106843787,0.3628,100120.0,100110.0,0.2292963]
[1734106844480,0.3628,100120.0,100110.0,0.2792383]
[1734106844685,0.002,100120.0,100110.0,0.2792383]
[1734106845589,0.002,100120.0,100110.0,0.32292417]
[1734106846083,0.002,100120.0,100110.0,0.77932047]
[1734106846270,0.38085716,100140.0,100110.0,0.77932047]
[1734106846271,0.38085716,100140.0,100120.0,0.049933]
[1734106846477,0.02005716,100140.0,100130.0,0.049932]
[1734106846677,0.02005716,100140.0,100130.0,1.33361787]
[1734106846891,0.38085716,100140.0,100130.0,1.33361787]
[1734106847188,0.02005716,100140.0,100130.0,0.09361787]
[1734106847385,0.38085716,100140.0,100130.0,0.09361787]
[1734106847693,0.02005716,100140.0,100130.0,0.09361787]
[1734106848078,0.02005716,100140.0,100130.0,0.049932]
[1734106849180,0.02005716,100140.0,100130.0,0.051932]
[1734106850376,0.02005716,100140.0,100130.0,0.412732]
[1734106850585,0.02005716,100140.0,100130.0,0.59120662]
[1734106850792,0.5911633,100150.0,100140.0,0.049927]
[1734106850982,0.008967,100150.0,100140.0,0.410727]
[1734106851481,0.11710208,100150.0,100140.0,0.049927]
[1734106851681,0.47790208,100150.0,100140.0,0.049927]
[1734106851990,0.47890208,100150.0,100140.0,0.049927]
[1734106852378,0.11810208,100150.0,100140.0,0.049927]
[1734106852691,0.2681,100170.0,100160.0,0.049917]
[1734106852888,0.00741691,100180.0,100170.0,0.049912]
[1734106853190,0.7559,100190.0,100180.0,0.049907]